[Event "Czech Open Rapid G1 2024"]
[Site "Pardubice"]
[Date "2024.07.18"]
[Round "5.10"]
[White "Bures, Jaroslav"]
[Black "Jurek, Josef"]
[Result "1-0"]
[Annotator "TA"]
[ECO "C06"]
[WhiteElo "2418"]
[BlackElo "2200"]
[PlyCount "107"]
[EventDate "2024.07.16"]
[EventType "swiss"]
[EventCountry "CZE"]
[SourceTitle "playchess.com"]
[Source "ChessBase"]
[SourceQuality "1"]
[TimeControl "1200+10"]

{[%evp 13,107,2,26,-26,-14,-12,-21,-29,-8,-16,-22,-24,0,-14,-15,-24,-29,-60,-51,-41,-44,-61,-43,-52,-45,-61,-58,-98,-79,-90,-50,-54,-46,-71,-24,-7,-10,-14,0,0,0,-12,43,0,89,59,192,0,182,200,163,8,6,8,13,0,0,-131,-66,-85,0,-172,0,0,727,737,700,688,656,444,1100,1077,1020,1003,1272,1264,1489,1291,5700,4447,29944,6039,29960,29944,29979,29980,29978,29979,29983,29983,29986,29987,29987,29988,29988,29988]} 1. e4 {[%emt 0:00:02]} e6 {[%emt 0:00:07]} 2. d4 {[%emt 0:00:01]} d5 {[%emt 0:00:00]} 3. Nd2 {[%emt 0:00:21]} Be7 {[%emt 0:00:46]} 4. Ngf3 {[%emt 0:00:12]} Nf6 {[%emt 0:00:00]} 5. e5 {[%emt 0:00:17]} Nfd7 {[%emt 0:00:00]} 6. Bd3 {[%emt 0:00:27]} c5 {[%emt 0:00:00]} 7. c3 {[%emt 0:00:23]} Nc6 {[%emt 0:00:00][%cal Bb8c6,Bc6d4,Bd4f3][%mdl 32]} 8. a4 {[%emt 0:00:43]} (8. O-O $142) 8... Qb6 $11 {[%emt 0:01:12][%cal Rc5d4]} 9. O-O {[%emt 0:00:09]} cxd4 {[%emt 0:00:17]} 10. cxd4 {[%emt 0:00:08] The position is equal.} Nxd4 {[%emt 0:00:09][%cal Od7c5]} 11. a5 {[%emt 0:00:30]} Nxf3+ $1 {[%emt 0:00:22]} 12. Nxf3 {[%emt 0:00:01]} Qc7 {[%emt 0:00:15]} 13. Qe2 {[%emt 0:01:23]} Nc5 {[%emt 0:00:52]} 14. Bc2 {[%emt 0:01:18] Repels Nb3} Bd7 {[%emt 0:00:13]} 15. Be3 {[%emt 0:00:28]} Rc8 {[%emt 0:00:41]} 16. Rfc1 {[%emt 0:00:11]} Qb8 {[%emt 0:00:26]} 17. h3 {[%emt 0:01:30]} h6 {[%emt 0:00:26]} 18. Bd4 {[%emt 0:02:31]} a6 {[%emt 0:00:41]} 19. Qe3 {[%emt 0:01:00][%cal Oc2h7]} Bb5 {[%emt 0:02:19]} 20. Nd2 {[%emt 0:01:15]} Nd7 {[%emt 0:01:27]} 21. f4 {[%emt 0:00:17]} g6 {[%emt 0:01:33]} 22. Nf3 {[%emt 0:00:49]} Kf8 {[%emt 0:00:50]} 23. g4 {[%emt 0:00:45]} Bc5 {[%emt 0:01:24]} (23... Rc6 $17) 24. Bxg6 {[%emt 0:04:25]} Bxd4 {[%emt 0:01:29]} 25. Nxd4 {[%emt 0:00:02]} (25. Rxc8+ {is more complex.} Qxc8 26. Nxd4 fxg6 27. Rc1) 25... fxg6 {[%emt 0:00:41]} 26. Rxc8+ {[%emt 0:00:50]} (26. Nxe6+ $2 Ke8 $19) 26... Qxc8 {[%emt 0:00:01]} 27. Nxe6+ {[%emt 0:00:01]} Kf7 {[%emt 0:01:55]} (27... Kg8 $1 $11) 28. Rc1 {[%emt 0:00:23][%mdl 1024] White has compensation.} Bc6 {[%emt 0:01:45] [#]} (28... Kxe6 $11 {keeps the balance.} 29. f5+ (29. Rxc8 Rxc8 30. f5+ gxf5 $11) 29... gxf5 30. Rxc8 (30. gxf5+ Kxf5 31. Qf3+ Kxe5 $11) 30... Rxc8) 29. Nd4 $1 $16 {[%emt 0:00:40] And now e6+ would win. White has more active pieces.} Kg7 {[%emt 0:00:38]} (29... Nf8 30. Nxc6 bxc6 31. Qb6 $11) (29... Kg8 $14) 30. f5 $2 {[%emt 0:00:17]} (30. e6 $18 {[%cal Of4f5] Hoping for f5!} Re8 31. Nxc6 (31. exd7 Qxd7 32. Qc3 Kh7 $16) 31... bxc6 32. exd7 Qxd7 33. Qc3+ d4 34. Qxc6) 30... Re8 $2 {[%emt 0:00:35] [#]} (30... Qb8 $1 $11 31. Re1 (31. Nxc6 bxc6 32. e6 Nf6 $17) 31... Re8 32. Ne6+ Kh7 33. fxg6+ Kxg6 (33... Kg8 $2 34. Qxh6 Re7 35. Rf1 $18) 34. Nf4+ Kf7 (34... Kh7 35. Qd3+ Kh8 36. Qg6 $11) 35. e6+ Ke7 (35... Kg8 $2 36. Nh5 $18)) 31. e6 $1 $18 {[%emt 0:01:24] fxg6 is the strong threat.} Nf6 {[%emt 0:00:18]} 32. Nxc6 $2 {[%emt 0:00:41]} (32. fxg6 $18 {Nf5+ would kill now.} Kxg6 33. Rf1) 32... bxc6 $11 {[%emt 0:00:27]} 33. Qa7+ {[%emt 0:00:26]} Kh8 {[%emt 0:00:25]} 34. Qd4 $36 {[%emt 0:00:31][%mdl 2048] White has the initiative.} (34. fxg6 Qxe6 35. Rf1 Re7 36. Qxa6 d4 $19) 34... Kg7 {[%emt 0:00:50] aiming for ...Qb8.} 35. h4 {[%emt 0:00:32]} (35. Qa7+ $1 $11 Kh8 36. Qf7 (36. fxg6 $2 Qxe6 37. g7+ Kh7 $19)) 35... gxf5 {[%emt 0:00:45]} (35... Qc7 $17 {Threatens to win with ...Qg3+.} 36. Rc3 gxf5 (36... Qxa5 $2 37. g5 $18)) 36. gxf5 $15 {[%emt 0:00:16]} Qd8 {[%emt 0:00:49]} ({Better is} 36... Rf8 $17 {White must now prevent ...Qc7.} 37. Kh1 Qb7 38. Rg1+ Kh7) 37. Kh1 $2 {[%emt 0:00:25]} (37. Rxc6 $11 {and White has nothing to worry.} Qb8 (37... Qxa5 38. b4 $11) 38. Rc2 (38. Kg2 $2 Rg8 $19)) 37... Kh8 $2 {[%emt 0:00:51]} (37... Qxa5 38. Rg1+ (38. Rxc6 $2 Qe1+ 39. Qg1+ Qxg1+ 40. Kxg1 Ng8 $19) 38... Kh7 39. Qxf6 (39. Qa7+ Qc7 40. Qxc7+ Nd7 41. Qg3 Nf8 42. Qg8#) 39... Qc7 40. Qg6+ Kh8 41. Qxe8+ Kh7 42. Qg8#) (37... Kh7 $19 {...Ne4 would now be deadly.} 38. Rxc6 Ne4) 38. Rxc6 $11 {[%emt 0:00:08][%cal Oc6c8]} Rg8 $2 {[%emt 0:00:14][%mdl 8192] Black is on the road to losing.} (38... Rf8 $11) 39. e7 $1 $18 {[%emt 0:00:09]} ({Worse is} 39. Rxa6 Rg7 (39... Qe7 $2 40. Ra7 $18) 40. Ra7 (40. e7 $2 Qxe7 41. Re6 Qc7 $19) 40... Rxa7 41. Qxa7 d4 $11) 39... Qxe7 {[%emt 0:00:09]} 40. Qxf6+ {[%emt 0:00:06]} (40. Rxf6 $2 {gets mated.} Qe1+ 41. Kh2 Qg3+ 42. Kh1 Qh3#) 40... Qxf6 {[%emt 0:00:07]} 41. Rxf6 {[%emt 0:00:02][%mdl 4096] Endgame. KR-KR} Rc8 {[%emt 0:00:13]} (41... Rd8 $142 42. Rxh6+ (42. Rxa6 d4 $16) 42... Kg7 43. Rxa6 d4 44. Rg6+ Kf7) 42. Rxh6+ {[%emt 0:00:21]} Kg7 {[%emt 0:00:02]} 43. Rxa6 {[%emt 0:00:01]} Rc1+ {[%emt 0:00:01]} 44. Kg2 {[%emt 0:00:03]} Rc2+ {[%emt 0:00:01]} 45. Kg3 {[%emt 0:00:13]} Rxb2 {[%emt 0:00:01]} 46. Rd6 {[%emt 0:00:07][%cal Oa5a6] Strongly threatening a6!} Rb5 {[%emt 0:00:11]} 47. a6 {[%emt 0:00:04]} Ra5 {[%emt 0:00:01]} 48. Kf4 {[%emt 0:00:41] White mates.} d4 {[%emt 0:00:18]} 49. Kg5 {[%emt 0:00:11]} Kf7 {[%emt 0:00:12]} 50. h5 {[%emt 0:00:27][%cal Bh4h5,Bh5h6,Bh6h7][%mdl 32]} Ke7 {[%emt 0:00:45] [#]} 51. h6 $1 {[%emt 0:00:05]} Ra1 {[%emt 0:00:33]} (51... Kxd6 52. h7) 52. Rxd4 {[%emt 0:00:03]} Rxa6 {[%emt 0:00:15]} 53. h7 {[%emt 0:00:02]} Ra8 {[%emt 0:00:01]} 54. Kg6 {[%emt 0:00:04] Weighted Error Value: White=0.37/Black=0.64.  Loses game:     	White=1     	Black=2      Missed win:     	White=1     	Black=1      Mistake:       	White=2     	Black=6      Inaccurate:     	White=3     	Black=1      OK:         	White=8     	Black=13     Best:        	White=1     	Black=1      Strong:       	White=3     	Black=1} 1-0

[Event "Czech Open Rapid G1 2024"]
[Site "Pardubice"]
[Date "2024.07.18"]
[Round "5.11"]
[White "Prokofiev, Valentyn"]
[Black "Berin, Artem"]
[Result "1/2-1/2"]
[Annotator "RC"]
[ECO "D30"]
[WhiteElo "2337"]
[BlackElo "2234"]
[PlyCount "280"]
[EventDate "2024.07.16"]
[EventType "swiss"]
[EventCountry "CZE"]
[SourceTitle "playchess.com"]
[Source "ChessBase"]
[SourceQuality "1"]
[TimeControl "1200+10"]

1. Nf3 {[%emt 0:00:02]} Nf6 {[%emt 0:00:05]} 2. c4 {[%emt 0:00:01]} e6 {[%emt 0:00:01]} 3. d4 {[%emt 0:00:03]} d5 {[%emt 0:00:02]} 4. e3 {[%emt 0:00:03]} c5 {[%emt 0:00:19]} 5. cxd5 {[%emt 0:00:01]} exd5 {[%emt 0:00:03]} 6. Bb5+ {[%emt 0:00:01]} Bd7 {[%emt 0:00:15]} 7. Bxd7+ {[%emt 0:00:01]} Nbxd7 {[%emt 0:00:01]} 8. dxc5 {[%emt 0:00:02]} Nxc5 {[%emt 0:00:26]} 9. O-O {[%emt 0:00:03]} Be7 {[%emt 0:00:01]} 10. Bd2 {[%emt 0:01:01]} O-O {[%emt 0:00:07]} 11. Bc3 {[%emt 0:00:01]} Nce4 {[%emt 0:00:08]} 12. Bd4 {[%emt 0:00:01]} Qd6 {[%emt 0:00:44]} 13. Nc3 {[%emt 0:00:16]} Nxc3 {[%emt 0:01:52]} 14. Bxc3 {[%emt 0:00:02]} Rfd8 {[%emt 0:00:39]} 15. Rc1 {[%emt 0:03:34]} Rac8 {[%emt 0:00:10]} 16. Qd4 {[%emt 0:00:34]} b6 {[%emt 0:01:21]} 17. Qa4 {[%emt 0:00:24]} Qb8 {[%emt 0:02:09]} 18. Qa6 {[%emt 0:00:16]} Ne4 {[%emt 0:01:04]} 19. Be5 {[%emt 0:00:04]} Qa8 {[%emt 0:01:06]} 20. Rfd1 {[%emt 0:04:35]} Nc5 {[%emt 0:00:33]} 21. Qe2 {[%emt 0:00:06]} Qb7 {[%emt 0:00:18]} 22. h3 {[%emt 0:03:04]} Ne6 {[%emt 0:01:42]} 23. Nd4 {[%emt 0:00:35]} Nxd4 {[%emt 0:01:09]} 24. Bxd4 {[%emt 0:00:01]} Rxc1 {[%emt 0:00:46]} 25. Rxc1 {[%emt 0:00:01]} Rc8 {[%emt 0:00:17]} 26. Rd1 {[%emt 0:00:01]} Qd7 {[%emt 0:00:33]} 27. Bc3 {[%emt 0:00:15]} Qe6 {[%emt 0:00:56]} 28. Qa6 {[%emt 0:00:49]} Rc7 {[%emt 0:00:40]} 29. Qb5 {[%emt 0:00:06]} Bc5 {[%emt 0:01:12]} 30. Qb3 {[%emt 0:04:00]} Rd7 {[%emt 0:00:42]} 31. Bd4 {[%emt 0:00:45]} h6 {[%emt 0:01:29]} 32. Qc3 {[%emt 0:00:07]} Bf8 {[%emt 0:00:42]} 33. Rc1 {[%emt 0:00:07]} f6 {[%emt 0:02:10]} 34. a4 {[%emt 0:00:30]} Bd6 {[%emt 0:00:21]} 35. Qc8+ {[%emt 0:01:02]} Kf7 {[%emt 0:00:02]} 36. Rc6 {[%emt 0:02:34]} Qe7 {[%emt 0:00:07]} 37. Rc3 {[%emt 0:00:34]} Bb4 {[%emt 0:00:59]} 38. Rc1 {[%emt 0:00:07]} Bd6 {[%emt 0:00:03]} 39. Qc6 {[%emt 0:00:24]} Qe6 {[%emt 0:00:08]} 40. Qa8 {[%emt 0:00:03]} Qe4 {[%emt 0:00:11]} 41. Qc8 {[%emt 0:00:29]} Qe7 {[%emt 0:00:13]} 42. Qc6 {[%emt 0:00:03]} Qe6 {[%emt 0:00:02]} 43. Qb5 {[%emt 0:00:01]} Rc7 {[%emt 0:00:42]} 44. Rd1 {[%emt 0:00:29]} Rd7 {[%emt 0:00:07]} 45. b4 {[%emt 0:00:05]} Be7 {[%emt 0:00:21]} 46. Rc1 {[%emt 0:00:06]} Qd6 {[%emt 0:00:29]} 47. Rc8 {[%emt 0:00:14]} Rd8 {[%emt 0:00:09]} 48. Rxd8 {[%emt 0:00:09]} Bxd8 {[%emt 0:00:01]} 49. Bc3 {[%emt 0:00:13]} Be7 {[%emt 0:00:12]} 50. Qd3 {[%emt 0:00:13]} Qc6 {[%emt 0:00:06]} 51. b5 {[%emt 0:00:09]} Qe6 {[%emt 0:00:13]} 52. Bd4 {[%emt 0:00:03]} Qc8 {[%emt 0:00:16]} 53. Qb3 {[%emt 0:00:13]} Qc1+ {[%emt 0:00:09]} 54. Kh2 {[%emt 0:00:01]} Bd6+ {[%emt 0:00:21]} 55. g3 {[%emt 0:00:00]} Qc4 {[%emt 0:00:02]} 56. Qd1 {[%emt 0:00:01]} Kf8 {[%emt 0:00:11]} 57. Kg2 {[%emt 0:00:24]} Qc8 {[%emt 0:00:12]} 58. Qh5 {[%emt 0:00:11]} Qe6 {[%emt 0:00:04]} 59. Kg1 {[%emt 0:00:03]} Qe4 {[%emt 0:00:04]} 60. Qd1 {[%emt 0:00:04]} Qf5 {[%emt 0:00:07]} 61. h4 {[%emt 0:00:20]} Qe4 {[%emt 0:00:14]} 62. Qc1 {[%emt 0:00:06]} Qe8 {[%emt 0:00:10]} 63. Qc3 {[%emt 0:00:23]} Kf7 {[%emt 0:00:06]} 64. Qb3 {[%emt 0:00:02]} Qe4 {[%emt 0:00:06]} 65. Qa2 {[%emt 0:00:21]} Qe6 {[%emt 0:00:28]} 66. Qc2 {[%emt 0:00:03]} Qd7 {[%emt 0:00:04]} 67. Qa2 {[%emt 0:00:21]} Qe6 {[%emt 0:00:02]} 68. a5 {[%emt 0:00:01]} Bc7 {[%emt 0:00:08]} 69. a6 {[%emt 0:00:07]} Kf8 {[%emt 0:00:18]} 70. Qb3 {[%emt 0:00:03]} Qe4 {[%emt 0:00:09]} 71. Qa3+ {[%emt 0:00:30]} Kf7 {[%emt 0:00:07]} 72. Qc1 {[%emt 0:00:01]} Bd8 {[%emt 0:00:27]} 73. Qc8 {[%emt 0:00:03]} Qe7 {[%emt 0:00:06]} 74. Qc6 {[%emt 0:00:04]} Qe6 {[%emt 0:00:09]} 75. Qb7+ {[%emt 0:00:02]} Qe7 {[%emt 0:00:10]} 76. Qxd5+ {[%emt 0:00:01]} Kf8 {[%emt 0:00:04]} 77. Qa8 {[%emt 0:00:35]} Kf7 {[%emt 0:00:12]} 78. Qd5+ {[%emt 0:00:06]} Kf8 {[%emt 0:00:02]} 79. h5 {[%emt 0:00:01]} Qc7 {[%emt 0:00:22]} 80. Kg2 {[%emt 0:00:16]} Be7 {[%emt 0:00:12]} 81. e4 {[%emt 0:00:06]} Bd6 {[%emt 0:00:07]} 82. Qf5 {[%emt 0:00:35]} Qd8 {[%emt 0:00:12]} 83. Qd5 {[%emt 0:00:09]} Qc7 {[%emt 0:00:03]} 84. Be3 {[%emt 0:00:07]} Be5 {[%emt 0:00:21]} 85. Qa8+ {[%emt 0:00:10]} Kf7 {[%emt 0:00:04]} 86. Qd5+ {[%emt 0:00:01]} Kf8 {[%emt 0:00:01]} 87. Kf3 {[%emt 0:00:13]} Bd6 {[%emt 0:00:22]} 88. Qa8+ {[%emt 0:00:18]} Kf7 {[%emt 0:00:02]} 89. Qd5+ {[%emt 0:00:02]} Kf8 {[%emt 0:00:05]} 90. Bf4 {[%emt 0:00:14]} Bxf4 {[%emt 0:00:16]} 91. gxf4 {[%emt 0:00:00]} Qc3+ {[%emt 0:00:02]} 92. Kg2 {[%emt 0:00:01]} Qc8 {[%emt 0:00:01]} 93. f5 {[%emt 0:00:04]} Qe8 {[%emt 0:00:21]} 94. Qd6+ {[%emt 0:00:12]} Kf7 {[%emt 0:00:02]} 95. Qc7+ {[%emt 0:00:02]} Kf8 {[%emt 0:00:04]} 96. Qd6+ {[%emt 0:00:39]} Kf7 {[%emt 0:00:02]} 97. Qd5+ {[%emt 0:00:00]} Kf8 {[%emt 0:00:02]} 98. Qd6+ {[%emt 0:00:30]} Kf7 {[%emt 0:00:02]} 99. Qd5+ {[%emt 0:00:01]} Kf8 {[%emt 0:00:01]} 100. f3 {[%emt 0:00:00]} Qc8 {[%emt 0:01:07]} 101. Qb7 {[%emt 0:00:08]} Qc2+ {[%emt 0:00:02]} 102. Kg3 {[%emt 0:00:21]} Qc1 {[%emt 0:00:19]} 103. Qb8+ {[%emt 0:00:02]} Kf7 {[%emt 0:00:02]} 104. Qxa7+ {[%emt 0:00:02]} Kg8 {[%emt 0:00:01]} 105. Qxb6 {[%emt 0:00:36]} Qg5+ {[%emt 0:00:01]} 106. Kf2 {[%emt 0:00:04]} Qd2+ {[%emt 0:00:02]} 107. Kf1 {[%emt 0:00:01]} Qc1+ {[%emt 0:00:03]} 108. Ke2 {[%emt 0:00:25]} Qc2+ {[%emt 0:00:03]} 109. Ke3 {[%emt 0:00:03]} Qc3+ {[%emt 0:00:05]} 110. Kf2 {[%emt 0:00:12]} Qd2+ {[%emt 0:00:05]} 111. Kf1 {[%emt 0:00:07]} Qc1+ {[%emt 0:00:01]} 112. Kg2 {[%emt 0:00:01]} Qg5+ {[%emt 0:00:02]} 113. Kf1 {[%emt 0:00:26]} Qc1+ {[%emt 0:00:01]} 114. Ke2 {[%emt 0:00:01]} Qc2+ {[%emt 0:00:02]} 115. Ke3 {[%emt 0:00:01]} Qc3+ {[%emt 0:00:01]} 116. Kf4 {[%emt 0:00:00]} Qd2+ {[%emt 0:00:18]} 117. Kg3 {[%emt 0:00:01]} Qg5+ {[%emt 0:00:03]} 118. Kh2 {[%emt 0:00:43]} Qxh5+ {[%emt 0:00:12]} 119. Kg1 {[%emt 0:00:01]} Qg5+ {[%emt 0:00:03]} 120. Kh1 {[%emt 0:00:01]} Qh5+ {[%emt 0:00:08]} 121. Kg2 {[%emt 0:00:02]} Qg5+ {[%emt 0:00:02]} 122. Kf1 {[%emt 0:00:00]} Qc1+ {[%emt 0:00:01]} 123. Ke2 {[%emt 0:00:00]} Qc2+ {[%emt 0:00:01]} 124. Ke3 {[%emt 0:00:05]} Qc3+ {[%emt 0:00:09]} 125. Kf4 {[%emt 0:00:07]} Qd2+ {[%emt 0:00:06]} 126. Kg3 {[%emt 0:00:01]} Qg5+ {[%emt 0:00:04]} 127. Kh2 {[%emt 0:00:10]} Qh5+ {[%emt 0:00:05]} 128. Kg1 {[%emt 0:00:01]} Qg5+ {[%emt 0:00:00]} 129. Kf2 {[%emt 0:00:01]} Qd2+ {[%emt 0:00:02]} 130. Kf1 {[%emt 0:00:00]} Qc1+ {[%emt 0:00:01]} 131. Kg2 {[%emt 0:00:01]} Qg5+ {[%emt 0:00:03]} 132. Kh2 {[%emt 0:00:00]} Qh5+ {[%emt 0:00:02]} 133. Kg2 {[%emt 0:00:19]} Qg5+ {[%emt 0:00:03]} 134. Kf1 {[%emt 0:00:01]} Qc1+ {[%emt 0:00:02]} 135. Ke2 {[%emt 0:00:01]} Qc2+ {[%emt 0:00:03]} 136. Ke3 {[%emt 0:00:00]} Qc3+ {[%emt 0:00:01]} 137. Ke2 {[%emt 0:00:04]} Qc2+ {[%emt 0:00:02]} 138. Kf1 {[%emt 0:00:01]} Qc1+ {[%emt 0:00:03]} 139. Kg2 {[%emt 0:00:09]} Qg5+ {[%emt 0:00:02]} 140. Kh2 {[%emt 0:00:01]} Qh5+ {[%emt 0:00:01]} 1/2-1/2

[Event "Czech Open Rapid G1 2024"]
[Site "Pardubice"]
[Date "2024.07.18"]
[Round "5.12"]
[White "Bouska, Jiri"]
[Black "Burdalev, Kirill"]
[Result "0-1"]
[Annotator "RC"]
[ECO "C64"]
[WhiteElo "2222"]
[BlackElo "2348"]
[PlyCount "100"]
[EventDate "2024.07.16"]
[EventType "swiss"]
[EventCountry "CZE"]
[SourceTitle "playchess.com"]
[Source "ChessBase"]
[SourceQuality "1"]
[TimeControl "1200+10"]

1. e4 {[%emt 0:00:02]} e5 {[%emt 0:00:00]} 2. Nf3 {[%emt 0:00:02]} Nc6 {[%emt 0:00:01]} 3. Bb5 {[%emt 0:00:01]} a6 {[%emt 0:00:12]} 4. Ba4 {[%emt 0:00:01]} Bc5 {[%emt 0:00:18]} 5. O-O {[%emt 0:00:25]} Nge7 {[%emt 0:00:08]} 6. c3 {[%emt 0:00:35]} Ba7 {[%emt 0:00:06]} 7. d3 {[%emt 0:01:31]} O-O {[%emt 0:00:10]} 8. Bg5 {[%emt 0:01:18]} f6 {[%emt 0:00:53]} 9. Bb3+ {[%emt 0:00:16]} Kh8 {[%emt 0:00:07]} 10. Bh4 {[%emt 0:02:52]} d5 {[%emt 0:01:50]} 11. exd5 {[%emt 0:02:19]} Nxd5 {[%emt 0:00:01]} 12. Bg3 {[%emt 0:00:25]} Be6 {[%emt 0:01:04]} 13. Nbd2 {[%emt 0:00:39]} Qd7 {[%emt 0:00:17]} 14. Re1 {[%emt 0:00:49]} Rad8 {[%emt 0:00:03]} 15. Qe2 {[%emt 0:00:30]} Rfe8 {[%emt 0:00:41]} 16. Qf1 {[%emt 0:01:47]} Bg8 {[%emt 0:03:48]} 17. Rad1 {[%emt 0:00:22]} Nde7 {[%emt 0:00:11]} 18. Bc2 {[%emt 0:01:33]} Nf5 {[%emt 0:00:10]} 19. Ne4 {[%emt 0:02:13]} Nxg3 {[%emt 0:00:20]} 20. Nxg3 {[%emt 0:00:27]} f5 {[%emt 0:01:23]} 21. d4 {[%emt 0:01:35]} e4 {[%emt 0:00:01]} 22. Nd2 {[%emt 0:00:35]} g6 {[%emt 0:00:36]} 23. Kh1 {[%emt 0:01:43]} Qg7 {[%emt 0:02:49]} 24. b3 {[%emt 0:01:33]} Ne7 {[%emt 0:00:04]} 25. Nc4 {[%emt 0:00:10]} Nd5 {[%emt 0:00:11]} 26. Ne2 {[%emt 0:00:25]} c6 {[%emt 0:00:50]} 27. Na5 {[%emt 0:00:21]} Bb8 {[%emt 0:00:08]} 28. Nc4 {[%emt 0:00:07]} b5 {[%emt 0:01:06]} 29. Ne5 {[%emt 0:00:11]} Bxe5 {[%emt 0:00:18]} 30. dxe5 {[%emt 0:00:01]} Qxe5 {[%emt 0:00:08]} 31. Nd4 {[%emt 0:00:04]} Qf6 {[%emt 0:00:12]} 32. c4 {[%emt 0:00:25]} Nc3 {[%emt 0:00:22]} 33. Ne2 {[%emt 0:00:11]} Nxd1 {[%emt 0:00:06]} 34. Rxd1 {[%emt 0:00:02]} Qb2 {[%emt 0:00:18]} 35. Bb1 {[%emt 0:00:06]} bxc4 {[%emt 0:00:05]} 36. Rxd8 {[%emt 0:00:13]} Rxd8 {[%emt 0:00:02]} 37. h4 {[%emt 0:00:11]} Rd2 {[%emt 0:00:16]} 38. Ng3 {[%emt 0:00:13]} Rxf2 {[%emt 0:00:35]} 39. Qg1 {[%emt 0:00:15]} h5 {[%emt 0:00:08]} 40. bxc4 {[%emt 0:00:10]} Bxc4 {[%emt 0:00:14]} 41. Qd1 {[%emt 0:00:11]} Rd2 {[%emt 0:00:30]} 42. Qg1 {[%emt 0:00:06]} Bd5 {[%emt 0:00:22]} 43. Qc5 {[%emt 0:00:13]} Qxb1+ {[%emt 0:00:12]} 44. Kh2 {[%emt 0:00:01]} Rxg2+ {[%emt 0:00:41]} 45. Kxg2 {[%emt 0:00:03]} e3+ {[%emt 0:00:01]} 46. Kh3 {[%emt 0:00:06]} Qb8 {[%emt 0:02:45]} 47. Qe7 {[%emt 0:00:28]} Kg8 {[%emt 0:01:26]} 48. Qf6 {[%emt 0:00:12]} Qe8 {[%emt 0:00:11]} 49. Ne2 {[%emt 0:00:10]} Kh7 {[%emt 0:00:44]} 50. Qg5 {[%emt 0:00:11]} Bf3 {[%emt 0:00:06]} 0-1

[Event "Czech Open Rapid G1 2024"]
[Site "Pardubice"]
[Date "2024.07.18"]
[Round "5.13"]
[White "Dobrowolski, Piotr"]
[Black "Hosticka, Frantisek"]
[Result "1-0"]
[Annotator "RC"]
[ECO "B03"]
[WhiteElo "2412"]
[BlackElo "2062"]
[PlyCount "79"]
[EventDate "2024.07.16"]
[EventType "swiss"]
[EventCountry "CZE"]
[SourceTitle "playchess.com"]
[Source "ChessBase"]
[SourceQuality "1"]
[TimeControl "1200+10"]

1. e4 {[%emt 0:00:04]} Nf6 {[%emt 0:00:16]} 2. e5 {[%emt 0:00:09]} Nd5 {[%emt 0:00:00]} 3. d4 {[%emt 0:00:04]} d6 {[%emt 0:00:00]} 4. f4 {[%emt 0:00:10]} Bf5 {[%emt 0:00:26]} 5. Nf3 {[%emt 0:00:12]} e6 {[%emt 0:00:09]} 6. Bd3 {[%emt 0:00:13]} Bxd3 {[%emt 0:00:35]} 7. Qxd3 {[%emt 0:00:03]} Nc6 {[%emt 0:00:50]} 8. c3 {[%emt 0:00:35]} Be7 {[%emt 0:00:27]} 9. O-O {[%emt 0:00:35]} O-O {[%emt 0:01:02]} 10. c4 {[%emt 0:03:44]} Nb6 {[%emt 0:02:46]} 11. Nc3 {[%emt 0:00:15]} dxe5 {[%emt 0:04:58]} 12. fxe5 {[%emt 0:00:06]} Nb4 {[%emt 0:00:19]} 13. Qe2 {[%emt 0:01:17]} c5 {[%emt 0:00:19]} 14. Be3 {[%emt 0:00:41]} cxd4 {[%emt 0:00:43]} 15. Bxd4 {[%emt 0:00:09]} Qc7 {[%emt 0:01:55]} 16. b3 {[%emt 0:00:38]} Nc6 {[%emt 0:04:22]} 17. Bf2 {[%emt 0:00:35]} Nd7 {[%emt 0:00:31]} 18. Nb5 {[%emt 0:04:54]} Qb8 {[%emt 0:00:22]} 19. Bg3 {[%emt 0:00:17]} a6 {[%emt 0:01:05]} 20. Rad1 {[%emt 0:00:36]} axb5 {[%emt 0:00:50]} 21. cxb5 {[%emt 0:01:32]} Nb4 {[%emt 0:00:21]} 22. Rxd7 {[%emt 0:00:37]} Rxa2 {[%emt 0:00:21]} 23. Qe4 {[%emt 0:04:45]} Nd5 {[%emt 0:00:13]} 24. Bh4 {[%emt 0:00:02]} Bxh4 {[%emt 0:00:42]} 25. Qxh4 {[%emt 0:00:18]} Qa7+ {[%emt 0:00:27]} 26. Kh1 {[%emt 0:00:09]} h6 {[%emt 0:00:11]} 27. Rd8 {[%emt 0:00:09]} Rxd8 {[%emt 0:00:08]} 28. Qxd8+ {[%emt 0:00:02]} Kh7 {[%emt 0:00:00]} 29. Qd7 {[%emt 0:00:54]} Ra1 {[%emt 0:00:10]} 30. Rg1 {[%emt 0:00:22]} Rxg1+ {[%emt 0:00:08]} 31. Nxg1 {[%emt 0:00:01]} Qf2 {[%emt 0:00:06]} 32. Qxb7 {[%emt 0:00:05]} Kg6 {[%emt 0:00:19]} 33. Qc6 {[%emt 0:00:16]} Qe3 {[%emt 0:00:14]} 34. Qc2+ {[%emt 0:00:06]} Kg5 {[%emt 0:00:16]} 35. Nf3+ {[%emt 0:00:11]} Kg4 {[%emt 0:00:10]} 36. h3+ {[%emt 0:00:52]} Kg3 {[%emt 0:00:05]} 37. Qd1 {[%emt 0:00:11]} Kf4 {[%emt 0:00:15]} 38. Qf1 {[%emt 0:00:14]} Ke4 {[%emt 0:00:06]} 39. Qc4+ {[%emt 0:00:04]} Kf5 {[%emt 0:00:03]} 40. Qg4# {[%emt 0:00:01]} 1-0